bitfinex-derivatives/quotes_SOLF0:USTF0_20251209
["timestamp","ask_amount","ask_price","bid_price","bid_amount"]
[1765300508580,6.2105,144.92,144.9,0.04746363]
[1765300509281,58.32424464,144.93,144.9,0.04746363]
[1765300509880,58.28,144.92,144.9,3.43746363]
[1765300510774,58.32424464,144.93,144.9,3.43746363]
[1765300512177,58.32424464,144.93,144.9,0.04746363]
[1765300512576,58.32424464,144.93,144.88,22.88856866]
[1765300512882,6.2117,144.89,144.88,22.88856866]
[1765300513276,64.4917,144.89,144.88,22.88856866]
[1765300515085,58.28,144.89,144.88,22.88856866]
[1765300515269,0.05322924,144.9,144.88,22.88856866]
[1765300515587,58.28,144.89,144.88,22.88856866]
[1765300515893,0.05322924,144.9,144.88,22.88856866]
[1765300516180,58.28,144.89,144.88,22.88856866]
[1765300517678,58.28,144.89,144.88,22.03466943]
[1765300521381,58.28,144.89,144.88,27.27006924]
[1765300521787,58.28,144.89,144.88,22.03466943]
[1765300527794,6.2134,144.85,144.84,38.32]
[1765300528086,64.4934,144.85,144.84,38.32]
[1765300528289,58.28,144.85,144.79,3.23]
[1765300528593,154.9366,144.85,144.8,5.24592076]
[1765300528793,0.05056345,144.84,144.81,0.04574056]
[1765300529296,64.5145,144.83,144.81,0.04574056]
[1765300531593,126.5145,144.83,144.81,0.04574056]
[1765300532598,126.5145,144.83,144.76,3.23]
[1765300532599,6.2158,144.8,144.76,3.23]
[1765300532801,58.3,144.79,144.77,5.24154399]
[1765300532990,58.3,144.79,144.76,3.23]
[1765300533192,58.3,144.79,144.77,5.2414938]
[1765300533498,58.34770461,144.79,144.77,0.04751595]
[1765300534199,58.3,144.78,144.77,0.04751595]
[1765300536096,6.2168,144.77,144.75,28.53]
[1765300537184,6.2168,144.77,144.75,28.57928577]
[1765300537388,6.2181,144.75,144.72,32.63]
[1765300537590,58.32,144.74,144.72,32.63]
[1765300537798,58.32,144.74,144.69,3.23]
[1765300537986,58.32,144.74,144.71,3.23]
[1765300538498,58.36563191,144.74,144.71,3.28032115]
[1765300540106,58.36563191,144.74,144.71,0.05032115]
[1765300540301,58.32,144.73,144.71,0.05032115]
[1765300540805,67.26825903,144.73,144.71,0.05032115]
[1765300542293,64.5387,144.73,144.71,0.05032115]
[1765300542496,67.26825903,144.73,144.71,0.05032115]
[1765300542695,67.26825903,144.73,144.66,30.8]
[1765300542696,96.7509,144.71,144.66,30.8]
[1765300542905,2.72955903,144.7,144.66,30.8]
[1765300543203,58.34,144.69,144.66,30.8]
[1765300543617,58.39200236,144.69,144.66,30.85002564]
[1765300543798,6.2208,144.68,144.66,30.85002564]
[1765300544306,2.72955903,144.67,144.66,30.85002564]
[1765300544703,68.2208,144.68,144.66,30.85002564]
[1765300544903,68.2208,144.68,144.66,19.44872564]
[1765300545113,6.2224,144.64,144.63,34.45]
[1765300545401,62.0,144.68,144.6,3.23]
[1765300545611,6.2217,144.66,144.6,3.23]
[1765300545810,58.34,144.65,144.6,3.23]
[1765300546009,0.04386233,144.64,144.61,0.04641698]
[1765300546310,6.26656233,144.64,144.61,0.04641698]
[1765300546706,6.2231,144.63,144.61,0.04641698]
[1765300547712,6.2242,144.6,144.53,3.23]
[1765300547902,58.36,144.59,144.53,3.23]
[1765300548811,0.04701509,144.57,144.55,0.04836474]
[1765300549506,58.36,144.56,144.55,3.27836474]
[1765300550296,96.7612,144.69,144.55,4.65836474]
[1765300550297,158.7703,144.68,144.55,4.65836474]
[1765300550515,96.7826,144.66,144.55,3.23]
[1765300550714,96.806,144.63,144.55,3.23]
[1765300551003,96.7986,144.64,144.49,32.13187805]
[1765300551004,96.8291,144.59,144.5,3.23]
[1765300551210,58.36,144.58,144.5,3.23]
[1765300551411,0.04641109,144.56,144.53,0.04625082]
[1765300552108,6.2263,144.55,144.53,0.04625082]
[1765300552304,58.38,144.54,144.53,0.04625082]
[1765300553898,120.38,144.54,144.53,0.04625082]
[1765300556316,126.607,144.54,144.49,26.04]
[1765300556613,96.8691,144.53,144.49,26.04]
[1765300557310,0.04663929,144.52,144.5,0.04473245]
[1765300557501,6.2283,144.51,144.5,0.04473245]
[1765300557699,0.04663929,144.52,144.5,0.04473245]
[1765300557910,0.04663929,144.52,144.5,3.47473245]
[1765300558320,96.8206,144.61,144.5,3.47473245]
[1765300558521,58.42,144.6,144.51,3.43]
[1765300559009,6.2239,144.61,144.52,3.43]
[1765300559210,58.42,144.59,144.52,3.43]
[1765300559409,0.04836013,144.57,144.55,3.43]
[1765300560221,0.04836013,144.57,144.54,3.48274527]
[1765300560713,0.04836013,144.57,144.54,0.05274527]
[1765300562119,58.42,144.56,144.54,0.05274527]
[1765300563918,0.04836013,144.57,144.54,3.48274527]
[1765300564118,58.42,144.56,144.54,3.48274527]
[1765300564722,58.42,144.56,144.54,0.05274527]
[1765300565321,64.646,144.56,144.54,0.05274527]
[1765300566019,62.0,144.55,144.54,0.05274527]
[1765300566727,64.646,144.56,144.54,0.05274527]
[1765300567720,6.2281,144.51,144.49,26.04]
[1765300568014,58.42,144.5,144.49,26.04]
[1765300568322,96.8519,144.56,144.49,26.04]
[1765300568529,58.42,144.55,144.49,26.04]
[1765300568728,6.2277,144.52,144.51,0.05061558]
[1765300569226,6.2283,144.51,144.49,26.04]
[1765300569524,58.42,144.5,144.49,26.04]
[1765300569726,120.42,144.5,144.42,3.43]
[1765300569915,6.2301,144.47,144.42,3.43]
[1765300570111,0.05050415,144.46,144.43,0.04951564]
[1765300570319,58.42,144.45,144.43,0.04951564]
[1765300570517,64.6508,144.45,144.43,0.04951564]
[1765300570719,58.42,144.45,144.38,3.43]
[1765300571429,58.42,144.45,144.35,3.43]
[1765300571430,96.9385,144.43,144.35,3.43]
[1765300571628,0.04901008,144.4,144.38,0.04546135]
[1765300571925,58.44,144.39,144.38,0.04546135]
[1765300572717,58.44,144.39,144.34,27.86]
[1765300572718,59.82,144.39,144.34,27.86]
[1765300572918,96.9709,144.38,144.34,27.86]
[1765300573116,96.9763,144.37,144.34,27.86]
[1765300573328,96.9763,144.37,144.24,3.43]
[1765300573329,6.2366,144.32,144.24,3.43]
[1765300573527,58.44,144.31,144.25,5.19984216]
[1765300573720,58.44,144.31,144.24,3.43]
[1765300573921,0.04537234,144.29,144.26,0.04970133]
[1765300575121,0.04537234,144.29,144.26,3.47970133]
[1765300575328,58.46,144.28,144.26,0.04970133]
[1765300575631,0.04537234,144.29,144.26,3.47970133]
[1765300575829,104.07883247,144.39,144.26,3.47970133]
[1765300576024,104.07883247,144.39,144.26,3.43]
[1765300576326,96.9764,144.37,144.26,3.43]
[1765300576532,96.9905,144.35,144.26,3.43]
[1765300576719,158.9819,144.36,144.26,3.43]
[1765300576720,64.7155,144.34,144.26,3.43]
[1765300576920,0.0477835,144.31,144.29,0.04924135]
[1765300577130,58.48,144.3,144.29,0.04924135]
[1765300577833,0.0477835,144.31,144.29,3.47924135]
[1765300578128,58.48,144.3,144.29,3.47924135]
[1765300578436,58.48,144.3,144.29,0.04924135]
[1765300578731,0.0477835,144.31,144.29,3.47924135]
[1765300579129,58.5277835,144.31,144.29,3.47924135]
[1765300579616,58.5277835,144.31,144.29,0.04924135]
[1765300580217,0.0477835,144.31,144.29,0.04924135]
[1765300580417,58.5,144.3,144.29,0.04924135]
[1765300581323,58.5,144.3,144.25,3.43]
[1765300581522,0.0477835,144.31,144.25,3.43]
[1765300581523,58.5,144.29,144.25,3.43]
[1765300581724,155.533,144.29,144.21,3.43]
[1765300581929,97.0503,144.26,144.21,3.43]
[1765300582230,97.0503,144.26,144.18,2.51]
[1765300582433,0.05019428,144.23,144.21,0.04644896]
[1765300582626,58.5,144.22,144.21,0.04644896]
[1765300583935,58.5,144.22,144.21,3.47644896]
[1765300584139,58.5,144.22,144.21,0.04644896]
[1765300584529,58.52,144.22,144.21,0.04644896]
[1765300584728,58.52,144.22,144.21,3.66644896]
[1765300584933,21.28718795,144.34,144.21,3.66644896]
[1765300585237,96.9954,144.34,144.23,3.62]
[1765300585422,58.52,144.33,144.23,3.62]
[1765300585826,96.9954,144.34,144.23,3.62]
[1765300586032,0.0502263,144.29,144.28,3.62]
[1765300586237,96.9693,144.38,144.28,3.62]
[1765300586238,0.04537005,144.3,144.28,3.62]
[1765300586439,0.051746,144.3,144.28,3.66958819]
[1765300586638,58.52,144.33,144.28,3.66958819]
[1765300586948,58.52,144.33,144.28,3.62]
[1765300587636,0.05147733,144.32,144.29,3.6688441]
[1765300593242,62.0,144.38,144.29,3.6688441]
[1765300593446,96.9215,144.45,144.33,3.62]
[1765300593633,58.52,144.44,144.35,3.62]
[1765300593929,6.2317,144.43,144.36,8.81590919]
[1765300594134,6.2317,144.43,144.36,3.62]
[1765300594347,0.04907454,144.41,144.38,0.04810905]
[1765300594547,0.04907454,144.41,144.38,3.66810905]
[1765300595037,0.04907454,144.41,144.4,3.62]
[1765300595236,0.04907454,144.41,144.38,3.66810905]
[1765300595638,0.04907454,144.41,144.4,3.62]
[1765300595846,58.52,144.45,144.41,3.62]
[1765300596040,96.881,144.52,144.41,3.62]
[1765300596241,58.52,144.49,144.41,3.62]
[1765300596444,126.7495,144.48,144.41,3.62]
[1765300596744,58.52,144.47,144.41,3.62]
[1765300596932,0.05110222,144.45,144.43,0.04613206]
[1765300597441,0.05110222,144.45,144.43,3.66613206]
[1765300598543,0.05110222,144.45,144.43,0.04613206]
[1765300600253,0.05110222,144.45,144.32,3.62]
[1765300600254,96.9581,144.4,144.32,3.62]
[1765300600445,58.52,144.39,144.32,3.62]
[1765300601048,0.05110208,144.37,144.34,0.04559088]
[1765300601251,62.05110208,144.37,144.34,0.04559088]
[1765300601547,58.5,144.36,144.34,0.04559088]
[1765300602251,64.7348,144.36,144.34,0.04559088]
[1765300602452,58.5,144.36,144.34,0.04559088]
[1765300602750,62.05110208,144.37,144.34,0.04559088]
[1765300602946,58.5,144.35,144.34,0.04559088]
[1765300604445,58.52,144.36,144.34,3.66559088]
[1765300604644,109.3764,144.46,144.34,3.66559088]
[1765300604645,96.8964,144.49,144.35,3.62]
[1765300604849,96.8964,144.49,144.34,98.42049088]
[1765300604850,155.4213,144.48,144.36,8.85739496]
[1765300605153,155.4213,144.48,144.38,3.62]
[1765300605347,155.4213,144.48,144.37,5.23739496]
[1765300605348,58.52,144.48,144.4,3.62]
[1765300605650,58.52,144.48,144.43,0.04366665]
[1765300605651,0.04705391,144.45,144.43,0.04366665]
[1765300605950,6.231,144.44,144.43,0.05251588]
[1765300606750,6.231,144.44,144.36,3.62]
[1765300606751,96.9384,144.43,144.36,3.62]
[1765300606944,58.52,144.42,144.36,3.62]
[1765300607347,126.7521,144.42,144.36,3.62]
[1765300607745,0.04599168,144.4,144.38,3.67162681]
[1765300608346,96.8889,144.5,144.4,3.62]
[1765300608347,58.52,144.43,144.4,3.62]
[1765300608652,58.52,144.44,144.4,3.62]
[1765300608948,58.52,144.45,144.4,3.62]
[1765300609348,0.04366534,144.44,144.41,3.67188763]
[1765300610247,0.04366534,144.44,144.43,3.62]
[1765300610442,193.6932,144.57,144.44,3.62]
[1765300610641,193.6932,144.57,144.46,3.62]
[1765300610642,96.8614,144.54,144.46,3.62]
[1765300610848,62.0,144.53,144.43,3.62]
[1765300611049,62.0,144.53,144.45,3.62]
[1765300611250,62.0,144.53,144.47,3.62]
[1765300611447,6.2264,144.55,144.49,3.62]
[1765300611648,0.04428243,144.51,144.49,3.66591781]
[1765300611844,0.04741436,144.51,144.5,5.24984479]
[1765300612044,0.04741436,144.51,144.5,8.86984479]
[1765300612257,58.5,144.56,144.5,8.86984479]
[1765300612444,58.5,144.56,144.5,3.62]
[1765300613254,0.05241149,144.54,144.5,3.62]
[1765300613847,96.8219,144.6,144.49,0.04591781]
[1765300613848,96.8172,144.61,144.51,3.62]
[1765300614150,96.8453,144.57,144.48,3.62]
[1765300614455,96.8275,144.59,144.5,3.62]
[1765300614757,96.8275,144.59,144.51,8.85989211]
[1765300614758,6.2256,144.57,144.51,8.85989211]
[1765300614960,0.04722099,144.55,144.53,0.05274868]
[1765300615750,58.48,144.54,144.53,0.05274868]
[1765300618666,58.48,144.54,144.46,3.61]
[1765300618854,58.48,144.54,144.47,8.84045331]
[1765300619052,58.48,144.54,144.47,3.61]
[1765300619253,58.48,144.53,144.49,3.61]
[1765300619453,58.48,144.55,144.49,3.61]
[1765300619653,0.04929018,144.53,144.52,3.61]
[1765300620157,58.48,144.55,144.52,3.61]
[1765300620158,11.26332843,144.62,144.52,3.61]
[1765300620458,11.26332843,144.62,144.47,6.09187805]
[1765300620459,58.48,144.61,144.54,3.61]
[1765300620652,120.48,144.61,144.54,3.61]
[1765300620849,96.8285,144.59,144.51,3.61]
[1765300621060,96.8212,144.6,144.51,3.61]
[1765300621261,0.05172099,144.57,144.54,0.05147025]
[1765300621560,0.05172099,144.57,144.54,3.66147025]
[1765300622058,58.48,144.56,144.54,0.05147025]
[1765300622448,0.05172099,144.57,144.54,0.05147025]
[1765300622654,58.53172099,144.57,144.54,3.66147025]
[1765300623071,58.53172099,144.57,144.54,0.05147025]
[1765300623469,58.53172099,144.57,144.54,3.66147025]
[1765300623666,0.05172099,144.57,144.54,3.66147025]
[1765300625659,58.46,144.64,144.57,3.33]
[1765300626366,58.46,144.64,144.58,3.33]
[1765300626672,58.46,144.64,144.6,3.37623605]
[1765300626673,0.05234995,144.62,144.6,3.37623605]
[1765300626967,0.05234995,144.62,144.6,0.04423915]
[1765300627957,6.27584995,144.62,144.6,0.04423915]
[1765300628972,6.224,144.61,144.56,3.33]
[1765300629168,96.86124995,144.62,144.52,3.33]
[1765300629471,96.8172,144.61,144.52,3.33]
[1765300629668,6.2252,144.58,144.48,3.33]
[1765300629870,58.46,144.57,144.49,5.2556086]
[1765300630069,0.04639561,144.54,144.52,0.04448022]
[1765300631668,0.04639561,144.54,144.52,3.37448022]
[1765300632469,0.04639561,144.54,144.52,0.04448022]
[1765300633466,0.04639561,144.54,144.52,3.37448022]
[1765300633775,96.8749,144.52,144.45,6.09187805]
[1765300634076,96.8749,144.52,144.41,3.33]
[1765300634274,6.2285,144.5,144.42,5.29045697]
[1765300634475,58.46,144.49,144.43,5.29045697]
[1765300634671,58.46,144.49,144.41,9.5621]
[1765300634877,0.04575492,144.46,144.44,0.04813573]
[1765300635573,0.04575492,144.46,144.44,3.37813573]
[1765300638371,0.04575492,144.46,144.44,0.04813573]
[1765300638985,0.04575492,144.46,144.38,6.09187805]
[1765300639170,0.04575492,144.46,144.39,5.29565805]
[1765300639372,96.9149,144.46,144.36,9.42187805]
[1765300639674,96.9218,144.45,144.37,5.3008087]
[1765300639871,96.9218,144.45,144.36,3.33]
[1765300640070,96.9149,144.46,144.36,3.33]
[1765300640071,6.2317,144.43,144.37,5.29943493]
[1765300640267,0.04604587,144.41,144.39,0.0523722]
[1765300640467,0.04604587,144.41,144.39,3.3823722]
[1765300640869,58.50604587,144.41,144.39,3.3823722]
[1765300641472,58.50604587,144.41,144.39,0.0523722]
[1765300641783,58.50604587,144.41,144.32,9.42187805]
[1765300641981,58.46,144.41,144.33,5.2969992]
[1765300642182,58.46,144.41,144.34,5.2969992]
[1765300642382,58.46,144.41,144.32,3.33]
[1765300642586,96.958,144.4,144.33,5.2958044]
[1765300642881,0.046308,144.38,144.35,0.0523502]
[1765300643276,62.046308,144.38,144.35,0.0523502]
[1765300643786,68.280108,144.38,144.35,0.0523502]
[1765300644286,62.046308,144.38,144.35,3.3823502]
[1765300644481,0.046308,144.38,144.35,3.3823502]
[1765300644782,58.526308,144.38,144.35,3.3823502]
[1765300646568,58.526308,144.38,144.35,0.0523502]
[1765300646569,155.498408,144.38,144.35,0.0523502]
[1765300646772,58.526308,144.38,144.35,0.0523502]
[1765300647179,6.2347,144.36,144.3,3.34]
[1765300648180,0.05062908,144.34,144.32,0.05129742]
[1765300648369,58.5,144.33,144.32,0.05129742]
[1765300649982,0.05062908,144.34,144.32,0.05129742]
[1765300649983,0.05062908,144.34,144.32,3.39129742]
[1765300650176,96.9209,144.46,144.34,3.34]
[1765300650177,96.9214,144.45,144.34,3.34]
[1765300650376,6.2326,144.41,144.34,3.34]
[1765300651086,0.04531255,144.39,144.36,0.0438869]
[1765300651285,58.5,144.38,144.36,0.0438869]
[1765300652789,58.56531255,144.39,144.36,3.3838869]
[1765300654478,62.0,144.45,144.36,3.3838869]
[1765300654785,96.9044,144.48,144.36,3.34]
[1765300654989,6.2295,144.48,144.4,3.34]
[1765300655187,58.52,144.47,144.4,3.34]
[1765300655488,0.04703773,144.45,144.42,3.3916351]
[1765300656895,58.56703773,144.45,144.42,3.3916351]
[1765300658695,0.04703773,144.45,144.42,3.3916351]
[1765300658994,96.8615,144.54,144.45,3.34]
[1765300659195,58.52,144.53,144.45,3.34]
[1765300659687,64.7473,144.53,144.45,3.34]
[1765300660081,0.05199437,144.5,144.48,0.046089]
[1765300662195,0.05199437,144.5,144.4,3.34]
[1765300662393,158.8774,144.52,144.42,3.34]
[1765300662394,6.2291,144.49,144.42,3.34]
[1765300662698,155.4053,144.48,144.37,3.34]
[1765300662889,58.5,144.47,144.37,3.34]
[1765300663293,6.27673425,144.43,144.41,0.05240932]
[1765300663487,58.5,144.42,144.33,3.34]
[1765300663887,6.2331,144.4,144.33,3.34]
[1765300664390,0.05190924,144.38,144.35,0.04446296]
[1765300664898,0.05190924,144.38,144.35,3.38446296]
[1765300665998,0.05190924,144.38,144.35,0.04446296]
[1765300666795,0.05190924,144.38,144.35,3.38446296]
[1765300667197,0.05190924,144.38,144.35,0.04446296]
[1765300667501,6.2343,144.37,144.35,0.04446296]
[1765300667884,0.05190924,144.38,144.35,0.04446296]
[1765300668698,0.05190924,144.38,144.35,3.38446296]
[1765300668992,0.05190924,144.38,144.35,0.04446296]
[1765300670000,6.28570924,144.38,144.35,0.04446296]
[1765300670497,6.2342,144.37,144.35,0.04446296]
[1765300670701,96.9764,144.37,144.29,3.34]
[1765300671108,6.2354,144.34,144.26,9.5787]
[1765300671399,58.52,144.33,144.27,8.6090304]
[1765300671599,0.04709882,144.31,144.29,0.04945463]
[1765300673298,97.028,144.3,144.24,6.09187805]
[1765300673497,97.028,144.3,144.15,16.15619891]
[1765300673498,7.13540568,144.3,144.21,3.34]
[1765300673702,58.52,144.29,144.22,5.29839538]
[1765300673898,117.68842965,144.31,144.23,5.29733952]
[1765300673899,20.66802965,144.31,144.23,5.29733952]
[1765300674202,58.52,144.28,144.23,3.34]
[1765300674403,0.04849698,144.27,144.24,0.04789582]
[1765300674608,0.04914778,144.27,144.24,0.04461703]
[1765300675089,0.04914778,144.27,144.24,3.14461703]
[1765300675295,58.58914778,144.27,144.24,0.04461703]
[1765300677701,6.2392,144.26,144.17,3.1]
[1765300677906,6.2392,144.26,144.18,5.31701994]
[1765300678204,155.5851,144.27,144.19,5.31857861]
[1765300678205,6.2396,144.25,144.19,5.31857861]
[1765300678408,6.2396,144.25,144.17,3.1]
[1765300678699,6.2396,144.25,144.18,5.31947342]
[1765300678902,0.05025282,144.22,144.2,0.05081749]
[1765300679097,58.54,144.21,144.2,0.05081749]
[1765300679289,58.54,144.21,144.2,3.15081749]
[1765300679493,58.54,144.21,144.2,5.36322514]
[1765300679688,58.54,144.21,144.2,0.05081749]
[1765300680896,0.05025282,144.22,144.2,0.05081749]
[1765300681208,0.05025282,144.22,144.2,3.15081749]
[1765300681503,0.05025282,144.22,144.2,0.05081749]
[1765300681812,0.05025282,144.22,144.21,8.39715876]
[1765300682000,0.05025282,144.22,144.2,0.05081749]
[1765300682200,0.05025282,144.22,144.2,3.15081749]
[1765300682804,6.2368,144.31,144.22,3.1]
[1765300682996,58.56,144.28,144.24,3.1]
[1765300683406,58.56,144.28,144.25,8.38788667]
[1765300683709,58.60634676,144.28,144.25,3.14942105]
[1765300683898,58.60634676,144.28,144.27,3.1]
[1765300684204,58.60634676,144.28,144.27,8.39109695]
[1765300684997,6.2339,144.38,144.28,3.13]
[1765300685203,96.9683,144.38,144.3,3.13]
[1765300685404,58.56,144.37,144.31,5.29702889]
[1765300685612,58.56,144.37,144.3,3.13]
[1765300685904,120.56,144.37,144.3,3.13]
[1765300686093,0.05288159,144.35,144.32,0.04831216]
[1765300686897,97.009,144.32,144.24,6.09187805]
[1765300687100,58.56,144.31,144.22,3.13]
[1765300687400,58.56,144.31,144.23,8.43311518]
[1765300687705,58.56,144.31,144.23,3.13]
[1765300687905,0.0480669,144.28,144.26,0.04683724]
[1765300689302,98.4665669,144.28,144.19,3.13]
[1765300689504,97.0509,144.26,144.19,3.13]
[1765300689699,6.24,144.24,144.15,3.13]
[1765300689899,58.56,144.25,144.17,3.13]
[1765300690300,58.56,144.25,144.2,0.04580422]
[1765300690301,0.04806163,144.22,144.2,0.04580422]
[1765300690997,58.56,144.21,144.2,0.04580422]
[1765300693299,58.62806163,144.22,144.2,3.17580422]
[1765300693696,62.0,144.28,144.2,3.17580422]
[1765300694007,97.0165,144.31,144.2,3.17580422]
[1765300694008,58.58,144.27,144.2,3.17580422]
[1765300694205,58.58,144.27,144.2,3.13]
[1765300694511,155.6254,144.27,144.2,3.13]
[1765300694909,0.04742057,144.25,144.22,0.04742389]
[1765300695297,0.04742057,144.25,144.16,3.13]
[1765300695298,97.10602057,144.25,144.16,3.13]
[1765300695504,97.0541,144.26,144.16,3.13]
[1765300695505,6.2403,144.23,144.16,3.13]
[1765300695704,58.58,144.22,144.16,3.13]
[1765300696316,0.05218984,144.2,144.18,3.17684958]
[1765300699505,0.05218984,144.2,144.18,0.04684958]
[1765300699708,0.05218984,144.2,144.18,3.17684958]
[1765300700413,0.05218984,144.2,144.18,0.04684958]
[1765300701211,0.05218984,144.2,144.18,3.17684958]
[1765300702913,58.58,144.22,144.18,3.17684958]
[1765300703109,58.6,144.26,144.18,3.17684958]
[1765300703309,58.6,144.26,144.21,3.13]
[1765300703907,6.2394,144.25,144.17,3.13]
[1765300704112,6.28535999,144.25,144.22,0.05060083]
[1765300704620,6.2399,144.24,144.22,0.05060083]
[1765300705223,0.04595999,144.25,144.22,3.28060083]
[1765300705912,0.04595999,144.25,144.22,0.05060083]
[1765300707412,0.04595999,144.25,144.22,3.28060083]
[1765300707716,96.9898,144.35,144.22,3.28060083]
[1765300707717,83.16,144.37,144.25,97.0528]
[1765300707915,83.16,144.37,144.24,3.23]
[1765300707916,58.6,144.36,144.26,3.23]
[1765300708722,0.05075577,144.32,144.3,0.05078432]
[1765300708921,0.05075577,144.32,144.31,3.23]
[1765300709422,0.05075577,144.32,144.3,3.28078432]
[1765300709607,0.05075577,144.32,144.3,0.05078432]
[1765300711120,0.05075577,144.32,144.3,3.28078432]
[1765300712820,0.05075577,144.32,144.3,0.05078432]
[1765300713827,58.58,144.31,144.3,0.05078432]
[1765300714121,120.58,144.31,144.24,3.23]
[1765300714321,97.0236,144.3,144.21,6.09187805]
[1765300714528,97.0292,144.29,144.2,3.23]
[1765300714915,0.04936144,144.26,144.23,0.05113954]
[1765300715120,58.58,144.25,144.23,0.05113954]
[1765300716129,58.58,144.25,144.23,3.28113954]
[1765300716426,58.58,144.25,144.23,0.05113954]
[1765300717424,64.8194,144.25,144.23,0.05113954]
[1765300717624,58.58,144.25,144.17,9.32187805]
[1765300717826,58.58,144.25,144.17,3.23]
[1765300718027,6.24,144.24,144.17,3.23]
[1765300718529,0.04739091,144.22,144.19,0.04956347]
[1765300719429,0.04739091,144.22,144.2,5.33459989]
[1765300719628,0.04739091,144.22,144.21,5.33459989]
[1765300720025,0.04739091,144.22,144.21,8.56459989]
[1765300720224,0.04739091,144.22,144.21,5.33459989]
[1765300721318,0.04739091,144.22,144.19,3.27956347]
[1765300721527,0.04739091,144.22,144.2,5.33567035]
[1765300721830,0.04739091,144.22,144.21,5.33458818]
[1765300723334,0.04739091,144.22,144.19,0.04956347]
[1765300723921,6.2411,144.21,144.19,0.04956347]
[1765300724127,97.0969,144.19,144.11,6.09187805]
[1765300724437,58.6,144.18,144.12,5.33570481]
[1765300724738,120.6,144.18,144.13,5.33550063]
[1765300725032,58.64840255,144.17,144.14,0.04544394]
[1765300725333,58.64840255,144.17,144.14,3.27544394]
[1765300725633,58.64840255,144.17,144.15,5.32773964]
[1765300725835,58.64840255,144.17,144.14,3.27544394]
[1765300726034,58.64840255,144.17,144.14,0.04544394]
[1765300726646,58.6,144.16,144.14,0.04544394]
[1765300726934,0.04840255,144.17,144.14,3.27544394]
[1765300727333,0.04840255,144.17,144.16,3.23]
[1765300727523,0.04840255,144.17,144.14,3.27544394]
[1765300728031,0.04840255,144.17,144.14,0.04544394]
[1765300728235,0.04840255,144.17,144.14,3.27544394]
[1765300728532,0.04840255,144.17,144.14,0.04544394]
[1765300729435,6.29130255,144.17,144.14,0.04544394]
[1765300730132,0.04840255,144.17,144.1,3.23]
[1765300730856,97.16160255,144.17,144.1,3.23]
[1765300731039,97.1249,144.15,144.12,0.04549612]
[1765300731238,97.17209534,144.15,144.06,3.23]
[1765300731439,97.1869,144.06,143.98,6.33395784]
[1765300731735,97.2058,144.03,143.96,3.23]
[1765300731939,6.25,144.01,143.96,3.23]
[1765300732147,58.62,144.0,143.96,3.23]
[1765300732443,0.04640619,143.99,143.97,0.02771396]
[1765300732633,58.62,143.98,143.92,3.23]
[1765300732833,0.04640619,143.99,143.92,3.23]
[1765300733043,58.62,143.98,143.92,3.23]
[1765300733249,0.04640619,143.99,143.92,3.23]
[1765300733848,58.66640619,143.99,143.93,3.23]
[1765300734347,0.04640619,143.99,143.93,3.23]
[1765300734547,58.64,143.98,143.93,3.23]
[1765300734945,0.04640619,143.99,143.93,3.23]
[1765300735342,58.64,143.98,143.93,3.23]
[1765300736149,0.04640619,143.99,143.93,3.23]
[1765300736350,58.64,143.98,143.93,3.23]
[1765300736548,0.04640619,143.99,143.91,3.18]
[1765300736747,0.04691876,143.96,143.91,3.18]
[1765300737051,0.04691876,143.96,143.92,3.18]
[1765300738349,58.70691876,143.96,143.92,3.18]
[1765300738759,0.04691876,143.96,143.92,3.18]
[1765300738952,0.04691876,143.96,143.9,3.33894826]
[1765300739146,58.66,143.95,143.9,3.33894826]
[1765300739459,6.2539,143.92,143.9,3.33894826]